Workbook

Sheet 1. Forside
A1: Hjørring Vandselskab A/S (spildevand)
D8: Bilag A
D13: Indholdsfortegnelse
C16: Fane nr. 2 | D16: Samlet prisloft
C17: Fane nr. 3 | D17: Driftsomkostninger
C18: Fane nr. 4 | D18: Historiske investeringer
C19: Fane nr. 5 | D19: Gennemførte investeringer
C20: Fane nr. 6 | D20: Korrektion investeringer
C21: Fane nr. 7 | D21: Planlagte investeringer
C22: Fane nr. 8 | D22: 1:1 omkostninger
C23: Fane nr. 9 | D23: Miljø- og servicemål
C24: Fane nr. 10 | D24: Klimatilpasning
C25: Fane nr. 11 | D25: Nettofinansielle poster
C26: Fane nr. 12 | D26: Over- eller underdækning
C27: Fane nr. 13 | D27: Kontrol med indtægtsrammen og oversigt over ekstraordinære effektiviseringsgevinster

Sheet 2. Samlet prisloft
A1: ='1. Forside'!A1 -> Hjørring Vandselskab A/S (spildevand)
B4: Fane 2. Samlet prisloft for 2015
B6: Driftsomkostninger
B7: Driftsomkostninger i prisloftet for 2014 | C7: ='3. Driftsomkostninger'!C20 -> 46071954.61 | D7: kr.
B8: Bortfald af væsentlige omkostninger | C8: =-'3. Driftsomkostninger'!C16 -> 0 | D8: kr.
B9: Korrektion for prisudviklingen 2014-2015 | C9: ='3. Driftsomkostninger'!C22 -> 36857.56369 | D9: kr.
B10: Forhøjelse til effektivt niveau iht. benchmarkingen | C10: ='3. Driftsomkostninger'!C28 -> 0 | D10: kr.
B11: Korrektion for generelt effektiviseringskrav | C11: =-'3. Driftsomkostninger'!C34 -> -202716.6003 | D11: kr.
B12: Korrektion for individuelt effektiviseringskrav | C12: =-'3. Driftsomkostninger'!C43 -> -1323416.896 | D12: kr.
B13: Driftsomkostninger i alt | C13: =SUM(C7:C12) -> 44582678.68 | D13: kr. | E13: =C13 -> 44582678.68 | F13: kr.
B14: Investeringer
B15: Tillæg for historiske investeringer | C15: ='4. Historiske investeringer'!C9 -> 78402543.83 | D15: kr.
B16: Tillæg for gennemførte investeringer i 2011-2013 | C16: ='5. Gennemførte investeringer'!F57 -> 8894011.797 | D16: kr.
B17: Korrektion af tillæg for planlagte investeringer vedrørende 2013 | C17: ='6. Korrektion investeringer'!C10 -> 1924521.607 | D17: kr.
B18: Tillæg for planlagte investeringer i 2014 og 2015 | C18: ='7. Planlagte investeringer'!F18 -> 3153026.667 | D18: kr.
B19: Investeringstillæg i alt | C19: =SUM(C15:C18) -> 92374103.9 | D19: kr. | E19: =C19 -> 92374103.9 | F19: kr.
B20: Øvrige omkostninger mv.
B21: Tillæg for 1:1 omkostninger i 2015 | C21: ='8. 1-1 omkostninger'!C11 -> 9576388 | D21: kr.
B22: Tillæg vedr. revisorerklæringer og DANVA/FVD-kontingent | C22: ='8. 1-1 omkostninger'!C19 -> 179000 | D22: kr.
B23: Korrektion ift. faktiske 1:1 omkostninger i 2013 | C23: ='8. 1-1 omkostninger'!C25 -> 7352 | D23: kr.
B24: Tillæg for driftsomkostninger til miljø- og servicemål i 2015 | C24: ='9. Miljø- og servicemål'!C8 -> 0 | D24: kr.
B25: Korrektion ift. faktiske driftsomkostninger til miljø- og servicemål i 2013 | C25: ='9. Miljø- og servicemål'!C15 -> 0 | D25: kr.
B26: Tillæg for driftsomkostninger til medfinansiering af klimatilpasningsprojekter i 2015 | C26: ='10. Klimatilpasning'!C9 -> 935611 | D26: kr.
B27: Korrektion ift. faktiske omkostninger til medfinansiering af klimatilpasningsprojekter i 2013 | C27: ='10. Klimatilpasning'!C16 -> 0 | D27: kr.
B28: Tillæg/fradrag for nettofinansielle poster i 2015 | C28: ='11. Nettofinansielle poster'!C9 -> 5624571 | D28: kr.
B29: Korrektion ift. faktiske nettofinansielle poster i 2013 | C29: ='11. Nettofinansielle poster'!C16 -> 1530257 | D29: kr.
B30: Øvrige omkostninger mv. i alt | C30: =SUM(C21:C29) -> 17853179 | D30: kr. | E30: =C30 -> 17853179 | F30: kr.
B31: Historisk over- eller underdækning
B32: Tillæg/fradrag for over- eller underdækning til og med 2010 | C32: ='12. Over- eller underdækning'!C11 -> 0 | D32: kr. | E32: =C32 -> 0 | F32: kr.
B33: Korrektion i forhold til tidligere indtægtsramme
B34: Korrektion for overholdelse af indtægtsramme i prisloft 2013 | C34: ='13. Kontrol med indtægtsrammen'!E27 -> -2072973.786 | D34: kr. | E34: =C34 -> -2072973.786 | F34: kr.
B35: Samlet prisloft
B36: Indtægtsramme i 2015 | E36: =SUM(E13:E34) -> 152736987.8 | F36: kr.
B37: Debiteret vandmængde i 2013 | E37: 3221113 | F37: m3
B38: Prisloft 2015 | E38: =E36/E37 -> 47.41745719 | F38: kr./m3

Sheet 3. Driftsomkostninger
A1: ='1. Forside'!A1 -> Hjørring Vandselskab A/S (spildevand)
B4: Fane 3. Driftsomkostninger
B6: Driftsomkostningerne i prisloftet for 2014
B7: Korrigerede driftsomkostninger i prisloftet for 2013 (DOiPL 2013) | C7: 46895798.21 | D7: kr.
B8: Prisfremskrivning 1,5 pct. | C8: =0.015*SUM(C7:C7) -> 703436.9732 | D8: kr.
B9: Generelt effektiviseringskrav (0 pct.) | C9: 0 | D9: kr.
B10: Individuelt effektiviseringskrav | C10: -1527280.578 | D10: kr.
B11: Driftsomkostningerne i prisloftet for 2014 (DOiPL 2014) | C11: =SUM(C7:C10) -> 46071954.61 | D11: kr.
B14: Korrektion for forventet bortfald af væsentlige omkostninger
B15: Selskabets indberettede bortfald af væsentlige omkostninger inden 2015 | C15: 0 | D15: kr.
B16: Korrektion for forventet bortfald | C16: =SUM(C15:C15) -> 0 | D16: kr.
B19: Korrektion for prisudviklingen fra 2014-2015
B20: Driftsomkostningerne i prisloftet for 2014 | C20: =C11-C16 -> 46071954.61 | D20: kr.
B21: Prisudvikling 2014 - 2015 | C21: 0.08 | D21: pct.
B22: Korrektion for prisudvikling | C22: =C20*(C21/100) -> 36857.56369 | D22: kr.
B25: Eventuel forhøjelse til effektivt niveau iht. benchmarkingen
B26: Selskabets effektive driftsomkostninger iht. benchmarkingen | C26: 34586216.32 | D26: kr.
B27: Selskabets pristalskorrigerede driftsomkostninger i 2015-niveau | C27: =C20+C22 -> 46108812.17 | D27: kr.
B28: Eventuel forhøjelse til effektivt niveau | C28: =IF(C27>C26,0,C26-C27) -> 0 | D28: kr.
B31: Korrektion for generelt effektiviseringskrav
B32: Driftsomkostningerne i prisloftet for 2014 | C32: =C20 -> 46071954.61 | D32: kr.
B33: Generelt effektiviseringskrav | C33: 0.44 | D33: pct.
B34: Endeligt generelt effektiviseringskrav | C34: =C32*(C33/100) -> 202716.6003 | D34: kr.
B37: Korrektion for individuelt effektiviseringskrav
B38: Rå effektiviseringspotentiale | C38: 11485738.28 | D38: kr.
B39: Effektiviseringspotentiale efter eventuel korrektion for særlige forhold | C39: 11485738.28 | D39: kr.
B40: Effektiviseringspotentiale efter forsigtighedshensyn | C40: 5293667.585 | D40: kr.
B41: Effektiviseringspotentiale efter eventuel korrektion for sammensætning af signifikante costdrivere | C41: 5293667.585 | D41: kr.
B42: Umiddelbart effektiviseringskrav | C42: =C41/4 -> 1323416.896 | D42: kr.
B43: Endeligt individuelt effektiviseringskrav | C43: =IF(C42>0.05*C20,0.05*C20,IF(C42<0.01*C20,0,C42)) -> 1323416.896 | D43: kr.

Sheet 4. Historiske investeringer
A1: ='3. Driftsomkostninger'!A1 -> Hjørring Vandselskab A/S (spildevand)
B4: Fane 4. Historiske investeringer
B6: Tillæg for historiske investeringer
B7: Værdi af selskabets materielle anlægsaktiver pr. 1. januar 2010 | C7: 3171565526 | D7: kr.
B8: Den årlige standardafskrivning på de materielle anlægsaktiver iht. POLKA | C8: 78402543.83 | D8: kr.
B9: Tillæg i alt i 2015 | C9: =C8 -> 78402543.83 | D9: kr.

Sheet 5. Gennemførte investeringer
A1: ='4. Historiske investeringer'!A1 -> Hjørring Vandselskab A/S (spildevand)
B4: Fane 5. Gennemførte investeringer i 2010 - 2013
B6: Tillæg for gennemførte investeringer i 2013
B7: Beskrivelse af investeringen | C7: Årstal | D7: Std. levetid (år) | E7: Anskaffelses-pris (kr.) | F7: Afskrivning
B8: Administrationbygninger | C8: 2013 | D8: 75 | E8: 6370812 | F8: =E8/D8 -> 84944.16 | G8: kr.
B9: Arbejdsplads | C9: 2013 | D9: 5 | E9: 2731783 | F9: =E9/D9 -> 546356.6 | G9: kr.
B10: Beluftningstanke, Mek/EL | C10: 2013 | D10: 20 | E10: 217593 | F10: 10879.65 | G10: kr.
B11: Beluftningstanke, SRO | C11: 2013 | D11: 10 | E11: 26974 | F11: 2697.4 | G11: kr.
B12: Brønde | C12: 2013 | D12: 75 | E12: 33808320 | F12: 450777.6 | G12: kr.
B13: Efterklaringstanke, Konstruktioner | C13: 2013 | D13: 60 | E13: 246312 | F13: 4105.2 | G13: kr.
B14: Efterklaringstanke, Mek/El | C14: 2013 | D14: 20 | E14: 631829 | F14: 31591.45 | G14: kr.
B15: Forafvanding, slam, Mek/EL | C15: 2013 | D15: 20 | E15: 174102 | F15: 8705.1 | G15: kr.
B16: Forafvanding, slam, SRO | C16: 2013 | D16: 10 | E16: 8695 | F16: 869.5 | G16: kr.
B17: Forklaring, Konstruktioner | C17: 2013 | D17: 60 | E17: 105992 | F17: 1766.533333 | G17: kr.
B18: Forsinkelsesbassiner, lukkede med automatisk rensning og SRO Miljøklasse A (500-1.000 m3) - Mek/EL | C18: 2013 | D18: 20 | E18: 126103 | F18: 6305.15 | G18: kr.
B19: Forsinkelsesbassiner, lukkede med automatisk rensning og SRO Miljøklasse A (500-1.000 m3) - SRO | C19: 2013 | D19: 10 | E19: 1677 | F19: 167.7 | G19: kr.
B20: Forsinkelsesbassiner, lukkede med automatisk rensning og SRO Miljøklasse A (større end 10.000 m3) - Konstruktioner | C20: 2013 | D20: 75 | E20: 117439 | F20: 1565.853333 | G20: kr.
B21: Forsinkelsesbassiner, lukkede med automatisk rensning og SRO Miljøklasse A (større end 10.000 m3) - SRO | C21: 2013 | D21: 10 | E21: 2650 | F21: 265 | G21: kr.
B22: Gasdisponering - elproduktionsanlæg, Mek/EL | C22: 2013 | D22: 20 | E22: 409436 | F22: 20471.8 | G22: kr.
B23: Gasdisponering, Konstruktioner | C23: 2013 | D23: 60 | E23: 174416 | F23: 2906.933333 | G23: kr.
B24: Gasdisponering, SRO | C24: 2013 | D24: 10 | E24: 1060 | F24: 106 | G24: kr.
B25: Indløb med riste, Konstruktioner | C25: 2013 | D25: 60 | E25: 542324 | F25: 9038.733333 | G25: kr.
B26: Indløb med riste, Mek/EL | C26: 2013 | D26: 20 | E26: 2021341 | F26: 101067.05 | G26: kr.
B27: Indløb med riste, SRO | C27: 2013 | D27: 10 | E27: 1663378 | F27: 166337.8 | G27: kr.
B28: Installationer "mekaniske riste og SRO" Miljøklasse A. (7-20 m2) - Mek/EL | C28: 2013 | D28: 20 | E28: 3625122 | F28: 181256.1 | G28: kr.
B29: Jordbassin Klasse A | C29: 2013 | D29: 50 | E29: 551723 | F29: 11034.46 | G29: kr.
B30: Køretøjer, store lastvogne (> 3.500 kg.) | C30: 2013 | D30: 5 | E30: 668704 | F30: 133740.8 | G30: kr.
B31: Ledningsnet > Ø 1600 mm (rørbassiner og transportledninger) | C31: 2013 | D31: 75 | E31: 89666 | F31: 1195.546667 | G31: kr.
B32: Ledningsnet = Ø 200 mm | C32: 2013 | D32: 75 | E32: 21274900 | F32: 283665.3333 | G32: kr.
B33: Overbygning | C33: 2013 | D33: 75 | E33: 31574 | F33: 420.9866667 | G33: kr.
B34: Overbygning | C34: 2013 | D34: 75 | E34: 29004 | F34: 386.72 | G34: kr.
B35: Pumpeinstallation Miljøklasse A (100-300 l/s) - Mek/EL | C35: 2013 | D35: 20 | E35: 466027 | F35: 23301.35 | G35: kr.
B36: Pumpeinstallation Miljøklasse A (300-600 l/s) - Mek/EL | C36: 2013 | D36: 20 | E36: 28370 | F36: 1418.5 | G36: kr.
B37: Pumpeinstallation Miljøklasse B (100-300 l/s) - Mek/EL | C37: 2013 | D37: 20 | E37: 26880 | F37: 1344 | G37: kr.
B38: Pumpeinstallation Miljøklasse B (300-600 l/s) - Mek/EL | C38: 2013 | D38: 20 | E38: 23571 | F38: 1178.55 | G38: kr.
B39: Pumpestationer i brønde (< 6,25 m2), Konstruktioner | C39: 2013 | D39: 50 | E39: 1300408 | F39: 26008.16 | G39: kr.
B40: Pumpestationer i brønde (< 6,25 m2), Mek/EL | C40: 2013 | D40: 20 | E40: 2564437 | F40: 128221.85 | G40: kr.
B41: Pumpestationer i brønde (< 6,25 m2), SRO | C41: 2013 | D41: 10 | E41: 648529 | F41: 64852.9 | G41: kr.
B42: Pumpestationer i underjordiske bygværker ( | C42: 2013 | D42: 20 | E42: 59997 | F42: 2999.85 | G42: kr.
B43: Pumpestationer m. overbygning (< 20 m2), Konstruktioner | C43: 2013 | D43: 50 | E43: 1846724 | F43: 36934.48 | G43: kr.
B44: Pumpestationer m. overbygning (< 20 m2), Mek/EL | C44: 2013 | D44: 20 | E44: 2845076 | F44: 142253.8 | G44: kr.
B45: Pumpestationer m. overbygning (< 20 m2), SRO | C45: 2013 | D45: 10 | E45: 583263 | F45: 58326.3 | G45: kr.
B46: Sand- og fedtfang, Mek/EL | C46: 2013 | D46: 20 | E46: 82835 | F46: 4141.75 | G46: kr.
B47: Slutafvanding, slam - lavteknologisk (slambede), Mek/EL | C47: 2013 | D47: 20 | E47: 27546 | F47: 1377.3 | G47: kr.
B48: Strømpeforing = Ø 200 mm | C48: 2013 | D48: 50 | E48: 211719 | F48: 4234.38 | G48: kr.
B49: Strømpeforing Ø 200 mm < Ledningsnet = Ø 500 mm | C49: 2013 | D49: 50 | E49: 311322 | F49: 6226.44 | G49: kr.
B50: Ø 1000 mm < Ledningsnet = Ø 1200 mm | C50: 2013 | D50: 75 | E50: 1041261 | F50: 13883.48 | G50: kr.
B51: Ø 1200 mm < Ledningsnet = Ø 1600 mm | C51: 2013 | D51: 75 | E51: 1283095 | F51: 17107.93333 | G51: kr.
B52: Ø 200 mm < Ledningsnet = Ø 500 mm | C52: 2013 | D52: 75 | E52: 10717019 | F52: 142893.5867 | G52: kr.
B53: Ø 500 mm < Ledningsnet = Ø 800 mm | C53: 2013 | D53: 75 | E53: 9229249 | F53: 123056.6533 | G53: kr.
B54: Ø 800 mm < Ledningsnet = Ø 1000 mm | C54: 2013 | D54: 75 | E54: 1687191 | F54: 22495.88 | G54: kr.
B55: Tillæg for 2013 | F55: =SUM(F8:F54) -> 2884882.303 | G55: kr.
B56: Tillæg for 2010 - 2012 | F56: 6009129.493 | G56: kr.
B57: Samlet tillæg for gennemførte investeringer | F57: =F55+F56 -> 8894011.797 | G57: kr.

Sheet 6. Korrektion investeringer
A1: ='5. Gennemførte investeringer'!A1 -> Hjørring Vandselskab A/S (spildevand)
B4: Fane 6. Korrektion af tillæg for planlagte investeringer
B6: Korrektion af tillæg for planlagte investeringer vedr. 2013
B7: Tillæg for planlagte investeringer i 2013 i prisloft 2013 | C7: 1964400 | D7: kr.
B8: Tillæg for planlagte investeringer i 2013 i prisloft 2014 | C8: 1880843 | D8: kr.
B9: Selskabets faktiske afskrivninger på gennemførte investeringer i 2013 | C9: ='5. Gennemførte investeringer'!F55 -> 2884882.303 | D9: kr.
B10: Korrektion af tillæg for planlagte investeringer vedr. 2013 | C10: =C9-C7+C9-C8 -> 1924521.607 | D10: kr.

Sheet 7. Planlagte investeringer
A1: ='6. Korrektion investeringer'!A1 -> Hjørring Vandselskab A/S (spildevand)
B4: Fane 7. Planlagte investeringer
B6: Tillæg for planlagte investeringer i 2014 og 2015
B7: Beskrivelse af investeringen | C7: Årstal | D7: Std. levetid (år) | E7: Anskaffelses-pris (kr.) | F7: Afskrivning
B8: Beluftningstanke, Mek/EL | C8: 2014 | D8: 20 | E8: 6000000 | F8: =E8/D8 -> 300000 | G8: kr.
B9: Ledningsnet = Ø 200 mm | C9: 2014 | D9: 75 | E9: 67945000 | F9: =E9/D9 -> 905933.3333 | G9: kr.
B10: Køretøjer, små lastvogne (< 3.500 kg.) | C10: 2014 | D10: 5 | E10: 600000 | F10: 120000 | G10: kr.
B11: Arbejdsplads | C11: 2014 | D11: 5 | E11: 1252900 | F11: 250580 | G11: kr.
B12: Køretøjer, små lastvogne (< 3.500 kg.) | C12: 2015 | D12: 5 | E12: 600000 | F12: 120000 | G12: kr.
B13: Beluftningstanke, Mek/EL | C13: 2015 | D13: 20 | E13: 6000000 | F13: 300000 | G13: kr.
B14: Ledningsnet = Ø 200 mm | C14: 2015 | D14: 75 | E14: 67945000 | F14: 905933.3333 | G14: kr.
B15: Arbejdsplads | C15: 2015 | D15: 5 | E15: 1252900 | F15: 250580 | G15: kr.
B16: Tillæg for 2014 | F16: =SUMIF(C8:C15,"2014",F8:F15) -> 1576513.333 | G16: kr.
B17: Tillæg for 2015 | F17: =SUMIF(C8:C15,"2015",F8:F15) -> 1576513.333 | G17: kr.
B18: Tillæg i alt | F18: =F16+F17 -> 3153026.667 | G18: kr.

Sheet 8. 1-1 omkostninger
A1: ='7. Planlagte investeringer'!A1 -> Hjørring Vandselskab A/S (spildevand)
B4: Fane 8. 1:1 omkostninger
B6: Tillæg for budgetterede 1:1 omkostninger i 2015
B7: Betaling til Forsyningssekretariatet | C7: 16500 | D7: kr.
B8: Spildevandsafgift | C8: 1101046 | D8: kr.
B9: Selskabsskatter | C9: 8020000 | D9: kr.
B10: Ejendomsskatter | C10: 438842 | D10: kr.
B11: Tillæg i alt | C11: =SUM(C7:C10) -> 9576388 | D11: kr.
B16: Tillæg for budgetterede nødvendige udgifter til revisorerklæringer samt ordinært medlemskab af DANVA og FVD i 2015
B17: Betaling for ordinært medlemskab af DANVA/FVD | C17: 150400 | D17: kr.
B18: Betaling for revisorerklæringer | C18: 28600 | D18: kr.
B19: Tillæg i alt | C19: =SUM(C17:C18) -> 179000 | D19: kr.
B22: Korrektion af tillæg for faktiske 1:1 omkostninger (inkl. revisorerklæringer og ordinært medlemskab af DANVA/FVD) i 2013
B23: Selskabets faktiske 1:1 omkostninger mv. i 2013, jf. reguleringsregnskabet | C23: =1733852+360000 -> 2093852 | D23: kr.
B24: Tillæg for budgetterede 1:1 omkostninger mv. i prisloft 2013 | C24: 2086500 | D24: kr.
B25: Korrektion af tillæg for budgetterede 1:1 omkostninger mv. i 2013 | C25: =C23-C24 -> 7352 | D25: kr.

Sheet 9. Miljø- og servicemål
A1: ='8. 1-1 omkostninger'!A1 -> Hjørring Vandselskab A/S (spildevand)
B4: Fane 9. Driftsomkostninger til miljø- og servicemål
B6: Tillæg for budgetterede driftsomkostninger til miljø- og servicemål i 2015
C7: 0 | D7: kr.
B8: Tillæg i alt | C8: =SUM(C7:C7) -> 0 | D8: kr.
B12: Korrektion af tillæg for faktiske driftsomkostninger til miljø- og servicemål i 2013
B13: Selskabets faktiske driftsomkostninger til miljø- og servicemål i 2013, jf. reguleringsregnskabet | C13: 0 | D13: kr.
B14: Tillæg for budgetterede driftsomkostninger til miljø- og servicemål i prisloft 2013 | C14: 0 | D14: kr.
B15: Korrektion af tillæg for budgetterede driftsomkostninger til miljø- og servicemål i 2013 | C15: =C13-C14 -> 0 | D15: kr.

Sheet 10. Klimatilpasning
A1: ='9. Miljø- og servicemål'!A1 -> Hjørring Vandselskab A/S (spildevand)
B4: Fane 10. Medfinansiering af klimatilpasningsprojekter
B7: Tillæg for budgetterede omkostninger til medfinansiering af klimatilpasningsprojekter i 2015
B8: Hjørring Midtby (godkendt i PL2014) | C8: 935611 | D8: kr.
B9: Tillæg i alt | C9: =SUM(C8:C8) -> 935611 | D9: kr.
B13: Korrektion af tillæg for faktiske omkostninger til medfinansiering af klimatilpasningsprojekter i 2013
B14: Selskabets faktiske driftsomkostninger til klimatilpasningsprojekter i 2013, jf. reguleringsregnskabet | C14: 0 | D14: kr.
B15: Tillæg for budgetterede driftsomkostninger til klimatilpasningsprojekter i prisloft 2013 | C15: 0 | D15: kr.
B16: Korrektion af tillæg for budgetterede omkostninger til klimatilpasningsprojekter i 2013 | C16: =C14-C15 -> 0 | D16: kr.

Sheet 11. Nettofinansielle poster
A1: ='10. Klimatilpasning'!A1 -> Hjørring Vandselskab A/S (spildevand)
B4: Fane 11. Nettofinansielle poster
B6: Tillæg for budgetterede nettofinansielle poster i 2015
B7: Budgetterede renteudgifter og gebyrer i 2015 | C7: 5783571 | D7: kr.
B8: Budgetterede renteindtægter i 2015 | C8: 159000 | D8: kr.
B9: Tillæg/fradrag i alt | C9: =C7-C8 -> 5624571 | D9: kr.
B13: Korrektion af tillæg for faktiske nettofinansielle poster i 2013
B14: Selskabets faktiske nettofinansielle poster i 2013, jf. reguleringsregnskabet | C14: 6153257 | D14: kr.
B15: Tillæg for budgetterede nettofinansielle poster i prisloft 2013 | C15: 4623000 | D15: kr.
B16: Korrektion af tillæg for budgetterede nettofinansielle poster i 2013 | C16: =C14-C15 -> 1530257 | D16: kr.

Sheet 12. Over- eller underdækning (hidden)
A1: ='11. Nettofinansielle poster'!A1 -> Hjørring Vandselskab A/S (spildevand)
B4: Fane 12. Over- eller underdækning til og med 2010
B6: Tillæg/fradrag for over- eller underdækning til og med 2010
B7: Opgjort over- eller underdækning per 31. december 2010 | C7: 0 | D7: kr.
B8: Heraf beløb indregnet i prislofterne for 2012 - 2014 | C8: 0 | D8: kr.
B9: Endnu ikke indregnet over- eller underdækning | C9: =C7-C8 -> 0 | D9: kr.
B10: Resterende indregningsperiode (fastsat i prisloftet for 2012) | C10: 0 | D10: år
B11: Tillæg/fradrag i alt | C11: =IF(C7=0,0,C9/C10) -> 0 | D11: kr.

Sheet 13. Kontrol med indtægtsrammen
A1: ='12. Over- eller underdækning'!A1 -> Hjørring Vandselskab A/S (spildevand)
B4: Fane 13. Korrektion for overholdelse af indtægtsrammen i prisloftet for 2013
B6: Samlet opgørelse vedrørende overholdelse af indtægtsrammen i prisloftet for 2013
B7: Indtægtsramme i prisloftet for 2013 | E7: 134303064.7 | F7: kr.
B8: Ikke anvendt likviditet vedrørende investeringer i 2013
B9: Tillæg for historiske investeringer | C9: 79136999.47 | D9: kr.
B10: Tillæg for gennemførte investeringer i 2011 | C10: 4591165 | D10: kr.
B11: Korrektion af tillæg for planlagte investeringer i 2011 | C11: 1869426 | D11: kr.
B12: Tillæg for planlagte investeringer i 2012 og 2013 | C12: 3475700 | D12: kr.
B13: Indtægter fra tilslutningsbidrag | C13: 4242153 | D13: kr.
B14: Indtægter fra salg af anlægsaktiver | C14: 0 | D14: kr.
B15: Erstatninger vedr. anlægsaktiver mv. | C15: 0 | D15: kr.
B16: Ekstraordinær effektiviseringsgevinst anvendt til investeringer | C16: 0 | D16: kr.
B17: Udgifter til investeringer | C17: -75746021 | D17: kr.
B18: Ikke anvendt likviditet vedr. investeringer i alt | C18: =SUM(C9:C17) -> 17569422.47 | D18: kr. | E18: =IF(C18<0,0,-C18) -> -17569422.47 | F18: kr.
B19: Ekstraordinære effektiviseringsgevinster anvendt til takstnedsættelse
B20: Ekstraordinær effektiviseringsgevinst anvendt til takstnedsættelse | C20: 0 | D20: kr. | E20: =-C20 -> 0 | F20: kr.
B21: Korrektion af ikke opkrævet tillæg fra 2011 i prisloft 2013
B22: Korrektion af ikke opkrævet tillæg fra 2011 i prisloft 2013 | C22: 0 | D22: kr. | E22: =-C22 -> 0 | F22: kr.
B23: Indtægter fra primære aktiviteter mv.
B24: Indtægter fra kubikmetertakster, faste takster, særbidrag, målergebyrer samt andre takster og gebyrer | C24: 118806616 | D24: kr.
B25: Andre indtægter i prisloftåret, som selskabet har opnået i forbindelse med eller som følge af selskabets primære aktiviteter | C25: 0 | D25: kr.
B26: Indtægter fra primære aktiviteter mv. i alt | C26: =SUM(C24:C25) -> 118806616 | D26: kr. | E26: =-C26 -> -118806616 | F26: kr.
B27: Tillæg/fradrag i prisloftet for 2015 i alt | E27: =E7+E18+E20+E22+E26 -> -2072973.786 | F27: kr.
B31: Oversigt over ekstraordinære effektiviseringsgevinster
C33: 2012 | E33: 2013 | G33: 2014 | I33: 2015 | K33: 2016
B34: Indhentet ekstraordinær effektiviseringsgevinst | C34: 1667184 | D34: kr. | E34: 5307892 | F34: kr. | H34: kr. | J34: kr. | L34: kr.
B35: Gevinst anvendt til investeringer | C35: 0 | D35: kr. | E35: 0 | F35: kr. | H35: kr. | J35: kr. | L35: kr.
B36: Gevinst anvendt til takstnedsættelse | C36: 724006 | D36: kr. | E36: 0 | F36: kr. | H36: kr. | J36: kr. | L36: kr.
B37: Korrektion for effektiviseringsgevinst der ikke er anvendt inden 4 år | C37: 0 | D37: kr. | E37: 0 | F37: kr. | H37: kr. | J37: kr. | K37: =IF(C38>SUM(E35:I36),C38-SUM(E35:I36),0)*-1 -> -943178 | L37: kr.
B38: Resterende gevinst | C38: =C34-C35-C36 -> 943178 | D38: kr. | E38: =C38+E34-E35-E36 -> 6251070 | F38: kr. | G38: =E38+G34-G35-G36 -> 6251070 | H38: kr. | I38: =G38+I34-I35-I36 -> 6251070 | J38: kr. | K38: =K34-K35-K36+K37+I38 -> 5307892 | L38: kr.

Sheet Ark1
